Workbook

Sheet 名单
A1: 附件1：
A2: 贵阳市住房和城乡建设局2023年事业单位公开招聘工作人员专业测试成绩及进入面试人员名单
A4: A类岗位和不组织专业技术测试的B类岗位
A5: 序号 | B5: 姓名 | C5: 准考证号 | D5: 报考单位及代码 | E5: 报考岗位及代码 | F5: 笔试总成绩 | G5: 笔试成绩（百分制） | H5: 笔试排名 | I5: 是否进入下一轮 | J5: 备注
A6: 1 | B6: 刘蛟 | C6: 1152019104011 | D6: 201011505贵阳市房地产交易管理中心 | E6: 20101150501专业技术岗 | F6: 202.50 | G6: =F6*(1/3) -> 67.50 | H6: 1 | I6: 是
A7: 2 | B7: 张健竹 | C7: 1152019102804 | D7: 201011505贵阳市房地产交易管理中心 | E7: 20101150501专业技术岗 | F7: 198.00 | G7: 66.00 | H7: 2 | I7: 是
A8: 3 | B8: 吴相平 | C8: 1152019102430 | D8: 201011505贵阳市房地产交易管理中心 | E8: 20101150501专业技术岗 | F8: 196.50 | G8: 65.50 | H8: 3 | I8: 是
A9: 4 | B9: 艾安园 | C9: 1152019102921 | D9: 201011505贵阳市房地产交易管理中心 | E9: 20101150501专业技术岗 | F9: 196.50 | G9: 65.50 | H9: 4 | I9: 是
A10: 5 | B10: 丁磊 | C10: 1152019104323 | D10: 201011505贵阳市房地产交易管理中心 | E10: 20101150501专业技术岗 | F10: 196.50 | G10: 65.50 | H10: 5 | I10: 是
A11: 6 | B11: 张桂兰 | C11: 1152019300526 | D11: 201011505贵阳市房地产交易管理中心 | E11: 20101150502管理岗 | F11: 213.00 | G11: 71.00 | H11: 1 | I11: 是
A12: 7 | B12: 吴晓珍 | C12: 1152019300923 | D12: 201011505贵阳市房地产交易管理中心 | E12: 20101150502管理岗 | F12: 205.50 | G12: 68.50 | H12: 2 | I12: 是
A13: 8 | B13: 陶红 | C13: 1152019104110 | D13: 201011505贵阳市房地产交易管理中心 | E13: 20101150502管理岗 | F13: 204.00 | G13: 68.00 | H13: 3 | I13: 是
A14: 9 | B14: 葛垚 | C14: 1152019300219 | D14: 201011505贵阳市房地产交易管理中心 | E14: 20101150503专业技术岗 | F14: 218.50 | G14: 72.83 | H14: 1 | I14: 是
A15: 10 | B15: 刘仕文 | C15: 1152019301810 | D15: 201011505贵阳市房地产交易管理中心 | E15: 20101150503专业技术岗 | F15: 212.50 | G15: 70.83 | H15: 2 | I15: 是
A16: 11 | B16: 陈青芮 | C16: 1152019303521 | D16: 201011505贵阳市房地产交易管理中心 | E16: 20101150503专业技术岗 | F16: 204.50 | G16: 68.17 | H16: 3 | I16: 是
A17: 12 | B17: 安明梅 | C17: 1152019301826 | D17: 201011505贵阳市房地产交易管理中心 | E17: 20101150504管理岗 | F17: 205.00 | G17: 68.33 | H17: 1 | I17: 是
A18: 13 | B18: 杨钰琳 | C18: 1152019301416 | D18: 201011505贵阳市房地产交易管理中心 | E18: 20101150504管理岗 | F18: 204.50 | G18: 68.17 | H18: 2 | I18: 是
A19: 14 | B19: 兰琪 | C19: 1152019303126 | D19: 201011505贵阳市房地产交易管理中心 | E19: 20101150504管理岗 | F19: 196.00 | G19: 65.33 | H19: 3 | I19: 是
A22: 组织专业技术测试的B类岗位
A23: 序号 | B23: 姓名 | C23: 准考证号 | D23: 报考单位及代码 | E23: 报考岗位及代码 | F23: 笔试总成绩 | G23: 笔试成绩（百分制） | H23: 笔试成绩30% | I23: 专业测试成绩 | J23: 专业测试成绩40% | K23: 笔试、专业测试成绩 | L23: 笔试、专业测试排名 | M23: 是否进入下一轮 | N23: 备注
A24: 1 | B24: 王开心 | C24: 1152019100327 | D24: 201011501贵阳市建筑管理处 | E24: 20101150101专业技术岗位 | F24: 218.5 | G24: =F24*(1/3) -> 72.83 | H24: =G24*0.3 -> 21.85 | I24: 72 | J24: =I24*0.4 -> 28.80 | K24: =H24+J24 -> 50.65 | L24: 1 | M24: 是
A25: 2 | B25: 王成星 | C25: 1152019101805 | D25: 201011501贵阳市建筑管理处 | E25: 20101150101专业技术岗位 | F25: 200 | G25: 66.67 | H25: 20.00 | I25: 76 | J25: 30.40 | K25: 50.40 | L25: 2 | M25: 是
A26: 3 | B26: 杨一波 | C26: 1152019103728 | D26: 201011501贵阳市建筑管理处 | E26: 20101150101专业技术岗位 | F26: 214.5 | G26: 71.50 | H26: 21.45 | I26: 71 | J26: 28.40 | K26: 49.85 | L26: 3 | M26: 是
A27: 4 | B27: 先诗亮 | C27: 1152019101630 | D27: 201011501贵阳市建筑管理处 | E27: 20101150101专业技术岗位 | F27: 197.5 | G27: 65.83 | H27: 19.75 | I27: 74 | J27: 29.60 | K27: 49.35 | L27: 4 | M27: 是
A28: 5 | B28: 罗皓 | C28: 1152019102420 | D28: 201011501贵阳市建筑管理处 | E28: 20101150101专业技术岗位 | F28: 202 | G28: 67.33 | H28: 20.20 | I28: 72 | J28: 28.80 | K28: 49.00 | L28: 5 | M28: 是
A29: 6 | B29: 孙鹏 | C29: 1152019103906 | D29: 201011501贵阳市建筑管理处 | E29: 20101150101专业技术岗位 | F29: 194 | G29: 64.67 | H29: 19.40 | I29: 73 | J29: 29.20 | K29: 48.60 | L29: 6 | M29: 是
A30: 7 | B30: 韩海军 | C30: 1152019101930 | D30: 201011501贵阳市建筑管理处 | E30: 20101150101专业技术岗位 | F30: 192.5 | G30: 64.17 | H30: 19.25 | I30: 73 | J30: 29.20 | K30: 48.45 | L30: 7 | M30: 是
A31: 8 | B31: 胡旭 | C31: 1152019103124 | D31: 201011501贵阳市建筑管理处 | E31: 20101150101专业技术岗位 | F31: 198.5 | G31: 66.17 | H31: 19.85 | I31: 71 | J31: 28.40 | K31: 48.25 | L31: 8 | M31: 是
A32: 9 | B32: 包昆 | C32: 1152019101815 | D32: 201011501贵阳市建筑管理处 | E32: 20101150101专业技术岗位 | F32: 184 | G32: 61.33 | H32: 18.40 | I32: 72 | J32: 28.80 | K32: 47.20 | L32: 9 | M32: 是
A33: 10 | B33: 唐永鸿 | C33: 1152019102930 | D33: 201011501贵阳市建筑管理处 | E33: 20101150101专业技术岗位 | F33: 184 | G33: 61.33 | H33: 18.40 | I33: 72 | J33: 28.80 | K33: 47.20 | L33: 9 | M33: 是
A34: 11 | B34: 吴朝阳 | C34: 1152019101909 | D34: 201011501贵阳市建筑管理处 | E34: 20101150101专业技术岗位 | F34: 195 | G34: 65.00 | H34: 19.50 | I34: 69 | J34: 27.60 | K34: 47.10 | L34: 11 | M34: 否
A35: 12 | B35: 王超越 | C35: 1152019102917 | D35: 201011501贵阳市建筑管理处 | E35: 20101150101专业技术岗位 | F35: 201.5 | G35: 67.17 | H35: 20.15 | I35: 66 | J35: 26.40 | K35: 46.55 | L35: 12 | M35: 否
A36: 13 | B36: 朱鹏宇 | C36: 1152019101617 | D36: 201011501贵阳市建筑管理处 | E36: 20101150101专业技术岗位 | F36: 193.5 | G36: 64.50 | H36: 19.35 | I36: 64 | J36: 25.60 | K36: 44.95 | L36: 13 | M36: 否
A37: 14 | B37: 周清 | C37: 1152019101625 | D37: 201011501贵阳市建筑管理处 | E37: 20101150101专业技术岗位 | F37: 187.5 | G37: 62.50 | H37: 18.75 | I37: 65 | J37: 26.00 | K37: 44.75 | L37: 14 | M37: 否
A38: 15 | B38: 秦文东 | C38: 1152019100422 | D38: 201011501贵阳市建筑管理处 | E38: 20101150101专业技术岗位 | F38: 183 | G38: 61.00 | H38: 18.30 | I38: 66 | J38: 26.40 | K38: 44.70 | L38: 15 | M38: 否
A39: 16 | B39: 罗雄 | C39: 1152019102314 | D39: 201011501贵阳市建筑管理处 | E39: 20101150101专业技术岗位 | F39: 186 | G39: 62.00 | H39: 18.60 | I39: 64 | J39: 25.60 | K39: 44.20 | L39: 16 | M39: 否
A40: 17 | B40: 申一帜 | C40: 1152019104306 | D40: 201011501贵阳市建筑管理处 | E40: 20101150101专业技术岗位 | F40: 182 | G40: 60.67 | H40: 18.20 | I40: 64 | J40: 25.60 | K40: 43.80 | L40: 17 | M40: 否
A41: 18 | B41: 王新宇 | C41: 1152019103402 | D41: 201011501贵阳市建筑管理处 | E41: 20101150101专业技术岗位 | F41: 190 | G41: 63.33 | H41: 19.00 | I41: 60 | J41: 24.00 | K41: 43.00 | L41: 18 | M41: 否
A42: 19 | B42: 刘永康 | C42: 1152019103526 | D42: 201011501贵阳市建筑管理处 | E42: 20101150101专业技术岗位 | F42: 182.5 | G42: 60.83 | H42: 18.25 | I42: 60 | J42: 24.00 | K42: 42.25 | L42: 19 | M42: 否
A43: 20 | B43: 张显峰 | C43: 1152019101519 | D43: 201011501贵阳市建筑管理处 | E43: 20101150101专业技术岗位 | F43: 178.5 | G43: 59.50 | H43: 17.85 | I43: 61 | J43: 24.40 | K43: 42.25 | L43: 19 | M43: 否
A44: 21 | B44: 徐庆 | C44: 1152019104413 | D44: 201011501贵阳市建筑管理处 | E44: 20101150101专业技术岗位 | F44: 177.5 | G44: 59.17 | H44: 17.75 | I44: 59 | J44: 23.60 | K44: 41.35 | L44: 21 | M44: 否
A45: 22 | B45: 黄俊 | C45: 1152019101714 | D45: 201011501贵阳市建筑管理处 | E45: 20101150101专业技术岗位 | F45: 182.5 | G45: 60.83 | H45: 18.25 | I45: 57 | J45: 22.80 | K45: 41.05 | L45: 22 | M45: 否
A46: 23 | B46: 陈俊鳞 | C46: 1152019102618 | D46: 201011501贵阳市建筑管理处 | E46: 20101150101专业技术岗位 | F46: 179 | G46: 59.67 | H46: 17.90 | I46: 53 | J46: 21.20 | K46: 39.10 | L46: 23 | M46: 否
A47: 24 | B47: 干睿松 | C47: 1152019102518 | D47: 201011501贵阳市建筑管理处 | E47: 20101150101专业技术岗位 | F47: 176.5 | G47: 58.83 | H47: 17.65 | I47: 51 | J47: 20.40 | K47: 38.05 | L47: 24 | M47: 否
A48: 25 | B48: 张天羽 | C48: 1152019104021 | D48: 201011501贵阳市建筑管理处 | E48: 20101150101专业技术岗位 | F48: 219.5 | G48: 73.17 | H48: 21.95 | I48: 0 | J48: 0.00 | K48: 0.00 | L48: 25 | M48: 否 | N48: 专业测试缺考
A49: 26 | B49: 邓恒涛 | C49: 1152019102712 | D49: 201011501贵阳市建筑管理处 | E49: 20101150101专业技术岗位 | F49: 212.5 | G49: 70.83 | H49: 21.25 | I49: 0 | J49: 0.00 | K49: 0.00 | L49: 25 | M49: 否 | N49: 专业测试缺考
A50: 27 | B50: 晏长俊 | C50: 1152019103416 | D50: 201011501贵阳市建筑管理处 | E50: 20101150101专业技术岗位 | F50: 209 | G50: 69.67 | H50: 20.90 | I50: 0 | J50: 0.00 | K50: 0.00 | L50: 25 | M50: 否 | N50: 专业测试缺考
A51: 28 | B51: 谢凯莹 | C51: 1152019101918 | D51: 201011501贵阳市建筑管理处 | E51: 20101150102专业技术岗位 | F51: 191 | G51: 63.67 | H51: 19.10 | I51: 66 | J51: 26.40 | K51: =H51+J51 -> 45.50 | L51: 1 | M51: 是
A52: 29 | B52: 张凌霜 | C52: 1152019101125 | D52: 201011501贵阳市建筑管理处 | E52: 20101150102专业技术岗位 | F52: 180 | G52: 60.00 | H52: 18.00 | I52: 65 | J52: 26.00 | K52: 44.00 | L52: 2 | M52: 是
A53: 30 | B53: 付海霞 | C53: 1152019102011 | D53: 201011501贵阳市建筑管理处 | E53: 20101150102专业技术岗位 | F53: 169.5 | G53: 56.50 | H53: 16.95 | I53: 67 | J53: 26.80 | K53: 43.75 | L53: 3 | M53: 是
A54: 31 | B54: 田向林 | C54: 1152019104412 | D54: 201011501贵阳市建筑管理处 | E54: 20101150102专业技术岗位 | F54: 174 | G54: 58.00 | H54: 17.40 | I54: 62 | J54: 24.80 | K54: 42.20 | L54: 4 | M54: 否
A55: 32 | B55: 索良芳 | C55: 1152019103210 | D55: 201011501贵阳市建筑管理处 | E55: 20101150102专业技术岗位 | F55: 149 | G55: 49.67 | H55: 14.90 | I55: 68 | J55: 27.20 | K55: 42.10 | L55: 5 | M55: 否
A56: 33 | B56: 龙毕香 | C56: 1152019100529 | D56: 201011501贵阳市建筑管理处 | E56: 20101150102专业技术岗位 | F56: 185 | G56: 61.67 | H56: 18.50 | I56: 58 | J56: 23.20 | K56: 41.70 | L56: 6 | M56: 否
A57: 34 | B57: 沈古烨 | C57: 1152019102828 | D57: 201011501贵阳市建筑管理处 | E57: 20101150102专业技术岗位 | F57: 166.5 | G57: 55.50 | H57: 16.65 | I57: 60 | J57: 24.00 | K57: 40.65 | L57: 7 | M57: 否
A58: 35 | B58: 高正卫 | C58: 1152019104313 | D58: 201011501贵阳市建筑管理处 | E58: 20101150102专业技术岗位 | F58: 173 | G58: 57.67 | H58: 17.30 | I58: 56 | J58: 22.40 | K58: 39.70 | L58: 8 | M58: 否
A59: 36 | B59: 王兴兴 | C59: 1152019104020 | D59: 201011501贵阳市建筑管理处 | E59: 20101150102专业技术岗位 | F59: 168 | G59: 56.00 | H59: 16.80 | I59: 57 | J59: 22.80 | K59: 39.60 | L59: 9 | M59: 否
A60: 37 | B60: 李芳芳 | C60: 1152019103929 | D60: 201011501贵阳市建筑管理处 | E60: 20101150102专业技术岗位 | F60: 148 | G60: 49.33 | H60: 14.80 | I60: 53 | J60: 21.20 | K60: 36.00 | L60: 10 | M60: 否
A61: 38 | B61: 陈志忠 | C61: 1152019100924 | D61: 201011501贵阳市建筑管理处 | E61: 20101150103专业技术岗位 | F61: 186 | G61: 62.00 | H61: 18.60 | I61: 69 | J61: 27.60 | K61: 46.20 | L61: 1 | M61: 是
A62: 39 | B62: 张宇 | C62: 1152019100307 | D62: 201011501贵阳市建筑管理处 | E62: 20101150103专业技术岗位 | F62: 192.5 | G62: 64.17 | H62: 19.25 | I62: 66 | J62: 26.40 | K62: 45.65 | L62: 2 | M62: 是
A63: 40 | B63: 王鹏 | C63: 1152019101628 | D63: 201011501贵阳市建筑管理处 | E63: 20101150103专业技术岗位 | F63: 151.5 | G63: 50.50 | H63: 15.15 | I63: 75 | J63: 30.00 | K63: 45.15 | L63: 3 | M63: 是
A64: 41 | B64: 周畅 | C64: 1152019102126 | D64: 201011501贵阳市建筑管理处 | E64: 20101150103专业技术岗位 | F64: 192 | G64: 64.00 | H64: 19.20 | I64: 64 | J64: 25.60 | K64: 44.80 | L64: 4 | M64: 否
A65: 42 | B65: 刘霞 | C65: 1152019103618 | D65: 201011501贵阳市建筑管理处 | E65: 20101150103专业技术岗位 | F65: 183.5 | G65: 61.17 | H65: 18.35 | I65: 66 | J65: 26.40 | K65: 44.75 | L65: 5 | M65: 否
A66: 43 | B66: 龙津润 | C66: 1152019100425 | D66: 201011501贵阳市建筑管理处 | E66: 20101150103专业技术岗位 | F66: 168 | G66: 56.00 | H66: 16.80 | I66: 69 | J66: 27.60 | K66: 44.40 | L66: 6 | M66: 否
A67: 44 | B67: 谭彦卿 | C67: 1152019102117 | D67: 201011501贵阳市建筑管理处 | E67: 20101150103专业技术岗位 | F67: 163.5 | G67: 54.50 | H67: 16.35 | I67: 70 | J67: 28.00 | K67: 44.35 | L67: 7 | M67: 否
A68: 45 | B68: 熊宇微 | C68: 1152019104418 | D68: 201011501贵阳市建筑管理处 | E68: 20101150103专业技术岗位 | F68: 162.5 | G68: 54.17 | H68: 16.25 | I68: 69 | J68: 27.60 | K68: 43.85 | L68: 8 | M68: 否
A69: 46 | B69: 徐坤 | C69: 1152019100627 | D69: 201011501贵阳市建筑管理处 | E69: 20101150103专业技术岗位 | F69: 143.5 | G69: 47.83 | H69: 14.35 | I69: 63 | J69: 25.20 | K69: 39.55 | L69: 9 | M69: 否
A70: 47 | B70: 欧洵 | C70: 1152019103712 | D70: 201011501贵阳市建筑管理处 | E70: 20101150103专业技术岗位 | F70: 175 | G70: 58.33 | H70: 17.50 | I70: 0 | J70: 0.00 | K70: 0.00 | L70: 10 | M70: 否 | N70: 专业测试缺考
A71: 48 | B71: 陈博 | C71: 1152019101530 | D71: 201011501贵阳市建筑管理处 | E71: 20101150104专业技术岗位 | F71: 197 | G71: 65.67 | H71: 19.70 | I71: 76 | J71: 30.40 | K71: =H71+J71 -> 50.10 | L71: 1 | M71: 是
A72: 49 | B72: 王建秋 | C72: 1152019102404 | D72: 201011501贵阳市建筑管理处 | E72: 20101150104专业技术岗位 | F72: 186.5 | G72: 62.17 | H72: 18.65 | I72: 78 | J72: 31.20 | K72: 49.85 | L72: 2 | M72: 是
A73: 50 | B73: 袁海 | C73: 1152019102202 | D73: 201011501贵阳市建筑管理处 | E73: 20101150104专业技术岗位 | F73: 193.5 | G73: 64.50 | H73: 19.35 | I73: 74 | J73: 29.60 | K73: 48.95 | L73: 3 | M73: 是
A74: 51 | B74: 林涛 | C74: 1152019101924 | D74: 201011501贵阳市建筑管理处 | E74: 20101150104专业技术岗位 | F74: 199.5 | G74: 66.50 | H74: 19.95 | I74: 71 | J74: 28.40 | K74: 48.35 | L74: 4 | M74: 否
A75: 52 | B75: 张黔豫 | C75: 1152019104105 | D75: 201011501贵阳市建筑管理处 | E75: 20101150104专业技术岗位 | F75: 185.5 | G75: 61.83 | H75: 18.55 | I75: 71 | J75: 28.40 | K75: 46.95 | L75: 5 | M75: 否
A76: 53 | B76: 殷幸 | C76: 1152019103701 | D76: 201011501贵阳市建筑管理处 | E76: 20101150104专业技术岗位 | F76: 185 | G76: 61.67 | H76: 18.50 | I76: 70 | J76: 28.00 | K76: 46.50 | L76: 6 | M76: 否
A77: 54 | B77: 汪科学 | C77: 1152019101825 | D77: 201011501贵阳市建筑管理处 | E77: 20101150104专业技术岗位 | F77: 171 | G77: 57.00 | H77: 17.10 | I77: 67 | J77: 26.80 | K77: 43.90 | L77: 7 | M77: 否
A78: 55 | B78: 佘高飞 | C78: 1152019101912 | D78: 201011501贵阳市建筑管理处 | E78: 20101150104专业技术岗位 | F78: 174.5 | G78: 58.17 | H78: 17.45 | I78: 65 | J78: 26.00 | K78: 43.45 | L78: 8 | M78: 否
A79: 56 | B79: 李德强 | C79: 1152019102904 | D79: 201011501贵阳市建筑管理处 | E79: 20101150104专业技术岗位 | F79: 167 | G79: 55.67 | H79: 16.70 | I79: 66 | J79: 26.40 | K79: 43.10 | L79: 9 | M79: 否
A80: 57 | B80: 杨正锡 | C80: 1152019103911 | D80: 201011502贵阳市城市建设档案馆 | E80: 20101150201专业技术岗位 | F80: 165.5 | G80: 55.17 | H80: 16.55 | I80: 85.20 | J80: 34.08 | K80: 50.63 | L80: 1 | M80: 是
A81: 58 | B81: 曾敏 | C81: 1152019103920 | D81: 201011502贵阳市城市建设档案馆 | E81: 20101150201专业技术岗位 | F81: 178.5 | G81: 59.50 | H81: 17.85 | I81: 80.20 | J81: 32.08 | K81: 49.93 | L81: 2 | M81: 是
A82: 59 | B82: 彭双双 | C82: 1152019103406 | D82: 201011502贵阳市城市建设档案馆 | E82: 20101150201专业技术岗位 | F82: 179.5 | G82: 59.83 | H82: 17.95 | I82: 78.00 | J82: 31.20 | K82: 49.15 | L82: 3 | M82: 是
A83: 60 | B83: 甄乙霖 | C83: 1152019101023 | D83: 201011502贵阳市城市建设档案馆 | E83: 20101150201专业技术岗位 | F83: 154 | G83: 51.33 | H83: 15.40 | I83: 81.80 | J83: 32.72 | K83: 48.12 | L83: 4 | M83: 否
A84: 61 | B84: 雷彩艺 | C84: 1152019100812 | D84: 201011502贵阳市城市建设档案馆 | E84: 20101150201专业技术岗位 | F84: 158.5 | G84: 52.83 | H84: 15.85 | I84: 79.80 | J84: 31.92 | K84: 47.77 | L84: 5 | M84: 否
A85: 62 | B85: 周倩 | C85: 1152019100928 | D85: 201011502贵阳市城市建设档案馆 | E85: 20101150201专业技术岗位 | F85: 163.5 | G85: 54.50 | H85: 16.35 | I85: 77.60 | J85: 31.04 | K85: 47.39 | L85: 6 | M85: 否
A86: 63 | B86: 郑启凤 | C86: 1152019101526 | D86: 201011502贵阳市城市建设档案馆 | E86: 20101150201专业技术岗位 | F86: 159.5 | G86: 53.17 | H86: 15.95 | I86: 78.00 | J86: 31.20 | K86: 47.15 | L86: 7 | M86: 否
A87: 64 | B87: 何杵燃 | C87: 1152019101227 | D87: 201011502贵阳市城市建设档案馆 | E87: 20101150201专业技术岗位 | F87: 155.5 | G87: 51.83 | H87: 15.55 | I87: 78.60 | J87: 31.44 | K87: 46.99 | L87: 8 | M87: 否
A88: 65 | B88: 郭谨莹 | C88: 1152019101122 | D88: 201011502贵阳市城市建设档案馆 | E88: 20101150201专业技术岗位 | F88: 160 | G88: =F88*(1/3) -> 53.33 | H88: =G88*0.3 -> 16.00 | I88: 73.40 | J88: =I88*0.4 -> 29.36 | K88: 45.36 | L88: 9 | M88: 否
A89: 66 | B89: 刘俊浩 | C89: 1152019101304 | D89: 201011502贵阳市城市建设档案馆 | E89: 20101150201专业技术岗位 | F89: 154.5 | G89: =F89*(1/3) -> 51.50 | H89: =G89*0.3 -> 15.45 | I89: 0 | J89: 0.00 | K89: 0.00 | L89: 10 | M89: 否 | N89: 专业测试缺考
A90: 67 | B90: 付云 | C90: 1152019101710 | D90: 201011503贵阳市工程设计质量监督站 | E90: 20101150301专业技术岗位 | F90: 197.5 | G90: =F90*(1/3) -> 65.83 | H90: =G90*0.3 -> 19.75 | I90: 82 | J90: =I90*0.4 -> 32.80 | K90: =H90+J90 -> 52.55 | L90: 1 | M90: 是
A91: 68 | B91: 何龙江 | C91: 1152019103309 | D91: 201011503贵阳市工程设计质量监督站 | E91: 20101150301专业技术岗位 | F91: 189.5 | G91: 63.17 | H91: 18.95 | I91: 82 | J91: 32.80 | K91: 51.75 | L91: 2 | M91: 是
A92: 69 | B92: 李祥任 | C92: 1152019101727 | D92: 201011503贵阳市工程设计质量监督站 | E92: 20101150301专业技术岗位 | F92: 179.5 | G92: 59.83 | H92: 17.95 | I92: 78 | J92: 31.20 | K92: 49.15 | L92: 3 | M92: 是
A93: 70 | B93: 杨翔筌 | C93: 1152019103424 | D93: 201011503贵阳市工程设计质量监督站 | E93: 20101150301专业技术岗位 | F93: 209 | G93: 69.67 | H93: 20.90 | I93: 70 | J93: 28.00 | K93: 48.90 | L93: 4 | M93: 否
A94: 71 | B94: 雷礼芳 | C94: 1152019103329 | D94: 201011503贵阳市工程设计质量监督站 | E94: 20101150301专业技术岗位 | F94: 188 | G94: 62.67 | H94: 18.80 | I94: 74 | J94: 29.60 | K94: 48.40 | L94: 5 | M94: 否
A95: 72 | B95: 蒋宇 | C95: 1152019104108 | D95: 201011503贵阳市工程设计质量监督站 | E95: 20101150301专业技术岗位 | F95: 179.5 | G95: 59.83 | H95: 17.95 | I95: 70 | J95: 28.00 | K95: 45.95 | L95: 6 | M95: 否
A96: 73 | B96: 石琳 | C96: 1152019102324 | D96: 201011503贵阳市工程设计质量监督站 | E96: 20101150301专业技术岗位 | F96: 172 | G96: 57.33 | H96: 17.20 | I96: 69 | J96: 27.60 | K96: 44.80 | L96: 7 | M96: 否
A97: 74 | B97: 胡世程 | C97: 1152019101211 | D97: 201011503贵阳市工程设计质量监督站 | E97: 20101150301专业技术岗位 | F97: 185.5 | G97: 61.83 | H97: 18.55 | I97: 64 | J97: 25.60 | K97: 44.15 | L97: 8 | M97: 否
A98: 75 | B98: 余诗涵 | C98: 1152019103726 | D98: 201011503贵阳市工程设计质量监督站 | E98: 20101150301专业技术岗位 | F98: 199.5 | G98: 66.50 | H98: 19.95 | I98: 60 | J98: 24.00 | K98: 43.95 | L98: 9 | M98: 否
A99: 76 | B99: 周云飞 | C99: 1152019102417 | D99: 201011503贵阳市工程设计质量监督站 | E99: 20101150301专业技术岗位 | F99: 171 | G99: 57.00 | H99: 17.10 | I99: 66 | J99: 26.40 | K99: 43.50 | L99: 10 | M99: 否
A100: 77 | B100: 左丽萍 | C100: 1152019101702 | D100: 201011504贵阳市住房保障中心 | E100: 20101150401专业技术岗位 | F100: 197 | G100: 65.67 | H100: 19.70 | I100: 67 | J100: 26.80 | K100: 46.50 | L100: 1 | M100: 是
A101: 78 | B101: 田玲玲 | C101: 1152019103708 | D101: 201011504贵阳市住房保障中心 | E101: 20101150401专业技术岗位 | F101: 197 | G101: 65.67 | H101: 19.70 | I101: 66 | J101: 26.40 | K101: 46.10 | L101: 2 | M101: 是
A102: 79 | B102: 余杨 | C102: 1152019101024 | D102: 201011504贵阳市住房保障中心 | E102: 20101150401专业技术岗位 | F102: 181.5 | G102: 60.50 | H102: 18.15 | I102: 68 | J102: 27.20 | K102: 45.35 | L102: 3 | M102: 是
A103: 80 | B103: 陈勇 | C103: 1152019103604 | D103: 201011504贵阳市住房保障中心 | E103: 20101150401专业技术岗位 | F103: 181.5 | G103: 60.50 | H103: 18.15 | I103: 68 | J103: 27.20 | K103: 45.35 | L103: 3 | M103: 是
A104: 81 | B104: 李启贵 | C104: 1152019100608 | D104: 201011504贵阳市住房保障中心 | E104: 20101150401专业技术岗位 | F104: 166.5 | G104: 55.50 | H104: 16.65 | I104: 69 | J104: 27.60 | K104: 44.25 | L104: 5 | M104: 否
A105: 82 | B105: 戴晨丹 | C105: 1152019100314 | D105: 201011504贵阳市住房保障中心 | E105: 20101150401专业技术岗位 | F105: 185.5 | G105: 61.83 | H105: 18.55 | I105: 64 | J105: 25.60 | K105: 44.15 | L105: 6 | M105: 否
A106: 83 | B106: 张中燕 | C106: 1152019102918 | D106: 201011504贵阳市住房保障中心 | E106: 20101150401专业技术岗位 | F106: 184 | G106: 61.33 | H106: 18.40 | I106: 63 | J106: 25.20 | K106: 43.60 | L106: 7 | M106: 否
A107: 84 | B107: 李升迪 | C107: 1152019102209 | D107: 201011504贵阳市住房保障中心 | E107: 20101150401专业技术岗位 | F107: 169.5 | G107: 56.50 | H107: 16.95 | I107: 64 | J107: 25.60 | K107: 42.55 | L107: 8 | M107: 否
A108: 85 | B108: 段伟健 | C108: 1152019102820 | D108: 201011504贵阳市住房保障中心 | E108: 20101150401专业技术岗位 | F108: 167.5 | G108: 55.83 | H108: 16.75 | I108: 0 | J108: 0.00 | K108: 0.00 | L108: 9 | M108: 否 | N108: 专业测试缺考
A109: 86 | B109: 梁银分 | C109: 1152019102907 | D109: 201011504贵阳市住房保障中心 | E109: 20101150401专业技术岗位 | F109: 165 | G109: 55.00 | H109: 16.50 | I109: 0 | J109: 0.00 | K109: 0.00 | L109: 10 | M109: 否 | N109: 专业测试缺考
A110: 87 | B110: 彭海江 | C110: 1152019302911 | D110: 201011506贵阳市房屋征收管理中心 | E110: 20101150601专业技术岗位 | F110: 187.5 | G110: 62.50 | H110: 18.75 | I110: 75 | J110: =I110*0.4 -> 30.00 | K110: =H110+J110 -> 48.75 | L110: 1 | M110: 是
A111: 88 | B111: 肖年嘉 | C111: 1152019300523 | D111: 201011506贵阳市房屋征收管理中心 | E111: 20101150601专业技术岗位 | F111: 172.5 | G111: 57.50 | H111: 17.25 | I111: 63 | J111: 25.20 | K111: 42.45 | L111: 2 | M111: 是
A112: 89 | B112: 杨青 | C112: 1152019303312 | D112: 201011506贵阳市房屋征收管理中心 | E112: 20101150601专业技术岗位 | F112: 178.5 | G112: 59.50 | H112: 17.85 | I112: 60 | J112: 24.00 | K112: 41.85 | L112: 3 | M112: 是
A113: 90 | B113: 袁剑 | C113: 1152019303421 | D113: 201011506贵阳市房屋征收管理中心 | E113: 20101150601专业技术岗位 | F113: 146 | G113: 48.67 | H113: 14.60 | I113: 68 | J113: 27.20 | K113: 41.80 | L113: 4 | M113: 否
A114: 91 | B114: 雷民 | C114: 1152019303419 | D114: 201011506贵阳市房屋征收管理中心 | E114: 20101150601专业技术岗位 | F114: 165 | G114: 55.00 | H114: 16.50 | I114: 63 | J114: 25.20 | K114: 41.70 | L114: 5 | M114: 否
A115: 92 | B115: 朱子康 | C115: 1152019303603 | D115: 201011506贵阳市房屋征收管理中心 | E115: 20101150601专业技术岗位 | F115: 170.5 | G115: 56.83 | H115: 17.05 | I115: 60 | J115: 24.00 | K115: 41.05 | L115: 6 | M115: 否
A116: 93 | B116: 汪洋 | C116: 1152019303428 | D116: 201011506贵阳市房屋征收管理中心 | E116: 20101150601专业技术岗位 | F116: 125 | G116: 41.67 | H116: 12.50 | I116: 69 | J116: 27.60 | K116: 40.10 | L116: 7 | M116: 否
A117: 94 | B117: 罗梅 | C117: 1152019303026 | D117: 201011506贵阳市房屋征收管理中心 | E117: 20101150601专业技术岗位 | F117: 176.5 | G117: 58.83 | H117: 17.65 | I117: 48 | J117: 19.20 | K117: 36.85 | L117: 8 | M117: 否
A118: 95 | B118: 罗伟佳 | C118: 1152019301606 | D118: 201011506贵阳市房屋征收管理中心 | E118: 20101150601专业技术岗位 | F118: 136.5 | G118: 45.50 | H118: 13.65 | I118: 58 | J118: 23.20 | K118: 36.85 | L118: 9 | M118: 否
